[Event "Early-Titled-Tuesday-Blitz-October-10-2023"]
[Site "Chess.com"]
[Date "2023.10.10"]
[Round "6"]
[White "campochess"]
[Black "LaPiToB"]
[Result "0-1"]
[WhiteElo "2129"]
[BlackElo "2294"]
[TimeControl "180+1"]
[EndTime "9:05:41 PDT"]
[Termination "LaPiToB won on time"]

1. e4 {[%clk 0:02:59.8]} 1... c6 {[%clk 0:02:59.8]} 2. Nc3 {[%clk 0:02:57.5]}
2... d5 {[%clk 0:03:00.2]} 3. Nf3 {[%clk 0:02:56.5]} 3... dxe4 {[%clk 0:03:00]}
4. Nxe4 {[%clk 0:02:55.8]} 4... Nf6 {[%clk 0:03:00.9]} 5. Ng3 {[%clk 0:02:54.8]}
5... h5 {[%clk 0:03:00.2]} 6. h4 {[%clk 0:02:52.4]} 6... Bg4 {[%clk 0:02:50.7]}
7. Bc4 {[%clk 0:02:51.8]} 7... e6 {[%clk 0:02:50]} 8. d3 {[%clk 0:02:51.3]} 8...
c5 {[%clk 0:02:47.1]} 9. Bg5 {[%clk 0:02:43.5]} 9... Be7 {[%clk 0:02:44.2]} 10.
Bxf6 {[%clk 0:02:40.8]} 10... Bxf6 {[%clk 0:02:43.2]} 11. Ne4 {[%clk 0:02:40.6]}
11... Nc6 {[%clk 0:02:24.9]} 12. Qd2 {[%clk 0:02:27.8]} 12... Bxf3 {[%clk
0:02:21.1]} 13. gxf3 {[%clk 0:02:25.6]} 13... Nd4 {[%clk 0:02:18.6]} 14. Rh3
{[%clk 0:02:24.8]} 14... Rc8 {[%clk 0:01:38]} 15. c3 {[%clk 0:02:22.4]} 15...
Nf5 {[%clk 0:01:36.7]} 16. Bb5+ {[%clk 0:02:12.9]} 16... Kf8 {[%clk 0:01:35.7]}
17. Nxf6 {[%clk 0:02:01.6]} 17... Qxf6 {[%clk 0:01:34.4]} 18. Qg5 {[%clk
0:02:01.1]} 18... Qe5+ {[%clk 0:01:26.3]} 19. Kf1 {[%clk 0:01:49.5]} 19... f6
{[%clk 0:01:24.9]} 20. Qd2 {[%clk 0:01:42.2]} 20... a6 {[%clk 0:01:12.9]} 21.
Re1 {[%clk 0:01:39.7]} 21... Qd6 {[%clk 0:01:09.9]} 22. Bc4 {[%clk 0:01:39.7]}
22... e5 {[%clk 0:01:08]} 23. f4 {[%clk 0:01:34.7]} 23... b5 {[%clk 0:01:02.5]}
24. fxe5 {[%clk 0:01:34.2]} 24... fxe5 {[%clk 0:00:53.4]} 25. Qg5 {[%clk
0:01:16.4]} 25... g6 {[%clk 0:00:43.2]} 26. Bb3 {[%clk 0:01:14.6]} 26... Kg7
{[%clk 0:00:40.5]} 27. Rf3 {[%clk 0:01:11.8]} 27... Rhf8 {[%clk 0:00:38.1]} 28.
a4 {[%clk 0:00:50.6]} 28... Rc7 {[%clk 0:00:37.4]} 29. Bc2 {[%clk 0:00:49.3]}
29... Rcf7 {[%clk 0:00:36.4]} 30. Kg1 {[%clk 0:00:46.1]} 30... Nh6 {[%clk
0:00:34.2]} 31. Rxf7+ {[%clk 0:00:43.6]} 31... Nxf7 {[%clk 0:00:32.5]} 32. Qg3
{[%clk 0:00:41]} 32... Qf6 {[%clk 0:00:31.6]} 33. axb5 {[%clk 0:00:36.6]} 33...
axb5 {[%clk 0:00:31.1]} 34. Re3 {[%clk 0:00:36.2]} 34... Re8 {[%clk 0:00:29.7]}
35. Rf3 {[%clk 0:00:35.8]} 35... Qe6 {[%clk 0:00:29.2]} 36. Re3 {[%clk
0:00:27.1]} 36... Nh6 {[%clk 0:00:27.8]} 37. Qf3 {[%clk 0:00:23.1]} 37... Nf5
{[%clk 0:00:27.2]} 38. Re4 {[%clk 0:00:20.7]} 38... Qf6 {[%clk 0:00:24.1]} 39.
Bb3 {[%clk 0:00:19.6]} 39... Ra8 {[%clk 0:00:18.5]} 40. Kh2 {[%clk 0:00:17.6]}
40... Ra1 {[%clk 0:00:18]} 41. d4 {[%clk 0:00:15.7]} 41... cxd4 {[%clk
0:00:15.7]} 42. cxd4 {[%clk 0:00:14.9]} 42... Nxd4 {[%clk 0:00:15.9]} 43. Qxf6+
{[%clk 0:00:13.4]} 43... Kxf6 {[%clk 0:00:16.8]} 44. Re3 {[%clk 0:00:13.4]}
44... Nf5 {[%clk 0:00:12.3]} 45. Rf3 {[%clk 0:00:10.6]} 45... e4 {[%clk
0:00:11.9]} 46. Rc3 {[%clk 0:00:09.5]} 46... Nxh4 {[%clk 0:00:11.4]} 47. Rc6+
{[%clk 0:00:09.4]} 47... Kg5 {[%clk 0:00:11.7]} 48. Rc5+ {[%clk 0:00:09.4]}
48... Kf4 {[%clk 0:00:11.6]} 49. Rxb5 {[%clk 0:00:09.3]} 49... Nf5 {[%clk
0:00:11.4]} 50. Bf7 {[%clk 0:00:07.1]} 50... g5 {[%clk 0:00:11]} 51. Bxh5 {[%clk
0:00:06.3]} 51... Rb1 {[%clk 0:00:09.9]} 52. Be2 {[%clk 0:00:05.4]} 52... g4
{[%clk 0:00:07.7]} 53. Rb4 {[%clk 0:00:04.5]} 53... Re1 {[%clk 0:00:04.1]} 54.
Bd3 {[%clk 0:00:03.9]} 54... g3+ {[%clk 0:00:02]} 55. fxg3+ {[%clk 0:00:03]}
55... Nxg3 {[%clk 0:00:02.9]} 56. Kg2 {[%clk 0:00:01.8]} 56... Re3 {[%clk
0:00:01.9]} 0-1

[Event "Early-Titled-Tuesday-Blitz-October-10-2023"]
[Site "Chess.com"]
[Date "2023.10.10"]
[Round "6"]
[White "djano"]
[Black "angryspacevoid"]
[Result "1-0"]
[WhiteElo "2676"]
[BlackElo "2519"]
[TimeControl "180+1"]
[EndTime "9:05:42 PDT"]
[Termination "djano won on time"]

1. e4 {[%clk 0:02:56.1]} 1... c5 {[%clk 0:02:55.4]} 2. Nc3 {[%clk 0:02:56]} 2...
Nc6 {[%clk 0:02:52.5]} 3. f4 {[%clk 0:02:54.7]} 3... e6 {[%clk 0:02:45.4]} 4.
Nf3 {[%clk 0:02:54.5]} 4... d5 {[%clk 0:02:45.9]} 5. Bb5 {[%clk 0:02:54.7]} 5...
Ne7 {[%clk 0:02:43.5]} 6. exd5 {[%clk 0:02:54.9]} 6... exd5 {[%clk 0:02:40.2]}
7. Qe2 {[%clk 0:02:55]} 7... Bd7 {[%clk 0:02:38.7]} 8. Nxd5 {[%clk 0:02:52.4]}
8... a6 {[%clk 0:02:36.5]} 9. Bd3 {[%clk 0:02:20]} 9... Bg4 {[%clk 0:02:29.1]}
10. Nxe7 {[%clk 0:02:05.3]} 10... Bxe7 {[%clk 0:02:30]} 11. c3 {[%clk
0:01:58.8]} 11... O-O {[%clk 0:02:19.3]} 12. O-O {[%clk 0:01:57.3]} 12... Re8
{[%clk 0:02:17]} 13. Bc2 {[%clk 0:01:51.4]} 13... Bf6 {[%clk 0:01:37.3]} 14. Qf2
{[%clk 0:01:45.9]} 14... Qd6 {[%clk 0:01:32.7]} 15. h3 {[%clk 0:01:42.7]} 15...
Be6 {[%clk 0:01:19]} 16. d3 {[%clk 0:01:31.3]} 16... Bf5 {[%clk 0:01:15.7]} 17.
Rd1 {[%clk 0:01:11]} 17... h5 {[%clk 0:00:56.1]} 18. Be3 {[%clk 0:01:10.1]}
18... Rad8 {[%clk 0:00:48.2]} 19. Ng5 {[%clk 0:01:04.4]} 19... Nd4 {[%clk
0:00:30.5]} 20. Bxd4 {[%clk 0:00:32.4]} 20... cxd4 {[%clk 0:00:29.2]} 21. Ne4
{[%clk 0:00:32.7]} 21... Qb6 {[%clk 0:00:16]} 22. Nxf6+ {[%clk 0:00:32.2]} 22...
Qxf6 {[%clk 0:00:10.3]} 23. c4 {[%clk 0:00:32.6]} 23... Re3 {[%clk 0:00:07.9]}
24. Rd2 {[%clk 0:00:32.3]} 24... Rde8 {[%clk 0:00:08.1]} 25. Rf1 {[%clk
0:00:32.4]} 25... Qg6 {[%clk 0:00:08.4]} 26. Kh2 {[%clk 0:00:31.6]} 26... Bxd3
{[%clk 0:00:05.3]} 27. Bxd3 {[%clk 0:00:28.4]} 27... Rxd3 {[%clk 0:00:05.8]} 28.
Re2 {[%clk 0:00:28.5]} 28... Rde3 {[%clk 0:00:06]} 29. Rfe1 {[%clk 0:00:27.4]}
29... Qe4 {[%clk 0:00:05]} 30. Rxe3 {[%clk 0:00:23.7]} 30... dxe3 {[%clk
0:00:05.9]} 31. Qf1 {[%clk 0:00:24.4]} 31... e2 {[%clk 0:00:06.1]} 32. Qf2
{[%clk 0:00:24.9]} 32... Qd3 {[%clk 0:00:06]} 33. b3 {[%clk 0:00:23.8]} 33...
Qd2 {[%clk 0:00:05.9]} 34. f5 {[%clk 0:00:20.9]} 34... f6 {[%clk 0:00:06.1]} 35.
Kg1 {[%clk 0:00:13.2]} 35... Re3 {[%clk 0:00:06.3]} 36. Kh2 {[%clk 0:00:13.7]}
36... Re5 {[%clk 0:00:06]} 37. Kg1 {[%clk 0:00:14.3]} 37... Re3 {[%clk
0:00:06.4]} 38. Kh2 {[%clk 0:00:14.6]} 38... Qd3 {[%clk 0:00:07]} 39. Rg1 {[%clk
0:00:14]} 39... Re4 {[%clk 0:00:06.4]} 40. Qe1 {[%clk 0:00:13.7]} 40... Qe3
{[%clk 0:00:06.7]} 41. g3 {[%clk 0:00:13.8]} 41... Rd4 {[%clk 0:00:06.8]} 42.
Rg2 {[%clk 0:00:13.8]} 42... Re4 {[%clk 0:00:06.1]} 43. Rf2 {[%clk 0:00:14.1]}
43... Qd3 {[%clk 0:00:06.2]} 44. Rg2 {[%clk 0:00:14.5]} 44... Qd1 {[%clk
0:00:06.5]} 45. Rg1 {[%clk 0:00:14]} 45... Qd3 {[%clk 0:00:06.7]} 46. Rg2 {[%clk
0:00:13.3]} 46... Re3 {[%clk 0:00:07.2]} 47. Rg1 {[%clk 0:00:12.2]} 47... Qe4
{[%clk 0:00:07.5]} 48. c5 {[%clk 0:00:11.2]} 48... Qc2 {[%clk 0:00:06.3]} 49. b4
{[%clk 0:00:11.2]} 49... Qxa2 {[%clk 0:00:06.1]} 50. b5 {[%clk 0:00:10.9]} 50...
axb5 {[%clk 0:00:06.2]} 51. Qc1 {[%clk 0:00:09.8]} 51... Qb3 {[%clk 0:00:04.3]}
52. Re1 {[%clk 0:00:10.1]} 52... Qd3 {[%clk 0:00:04.2]} 53. c6 {[%clk
0:00:09.2]} 53... bxc6 {[%clk 0:00:04]} 54. Qxc6 {[%clk 0:00:10.1]} 54... Qd2
{[%clk 0:00:03.9]} 55. Qa8+ {[%clk 0:00:09.6]} 55... Kh7 {[%clk 0:00:03.9]} 56.
Qh1 {[%clk 0:00:10.3]} 56... b4 {[%clk 0:00:02.7]} 57. Qg1 {[%clk 0:00:10.2]}
57... b3 {[%clk 0:00:02.9]} 58. g4 {[%clk 0:00:10.5]} 58... h4 {[%clk
0:00:02.7]} 59. g5 {[%clk 0:00:10.9]} 59... Rg3 {[%clk 0:00:02.8]} 60. g6+
{[%clk 0:00:09.4]} 60... Kh8 {[%clk 0:00:02.5]} 61. Qa7 {[%clk 0:00:09]} 61...
Qd6 {[%clk 0:00:01.9]} 62. Qa8+ {[%clk 0:00:08.8]} 1-0

[Event "Early-Titled-Tuesday-Blitz-October-10-2023"]
[Site "Chess.com"]
[Date "2023.10.10"]
[Round "6"]
[White "SlavenPastar"]
[Black "Rozhkov_V"]
[Result "0-1"]
[WhiteElo "2553"]
[BlackElo "2452"]
[TimeControl "180+1"]
[EndTime "9:05:45 PDT"]
[Termination "Rozhkov_V won by resignation"]

1. b3 {[%clk 0:03:00.9]} 1... Nf6 {[%clk 0:02:59.7]} 2. Bb2 {[%clk 0:03:01.3]}
2... g6 {[%clk 0:03:00.4]} 3. Nf3 {[%clk 0:03:00.9]} 3... Bg7 {[%clk 0:03:00.4]}
4. e3 {[%clk 0:03:01.7]} 4... O-O {[%clk 0:03:00.3]} 5. c4 {[%clk 0:03:02.3]}
5... c5 {[%clk 0:02:54.1]} 6. Be2 {[%clk 0:03:02.3]} 6... b6 {[%clk 0:02:54.2]}
7. d4 {[%clk 0:03:00.7]} 7... cxd4 {[%clk 0:02:53.9]} 8. exd4 {[%clk 0:03:00.6]}
8... Bb7 {[%clk 0:02:53.8]} 9. d5 {[%clk 0:03:00.3]} 9... d6 {[%clk 0:02:50.5]}
10. O-O {[%clk 0:02:59.4]} 10... Bc8 {[%clk 0:02:46.3]} 11. Nd4 {[%clk
0:02:54.4]} 11... Qc7 {[%clk 0:02:29.5]} 12. Nc3 {[%clk 0:02:53.9]} 12... a6
{[%clk 0:02:29.6]} 13. Re1 {[%clk 0:02:46.2]} 13... Re8 {[%clk 0:02:26.9]} 14.
Qd2 {[%clk 0:02:39.9]} 14... e5 {[%clk 0:02:26.1]} 15. dxe6 {[%clk 0:02:39.4]}
15... fxe6 {[%clk 0:02:27]} 16. Bf3 {[%clk 0:02:37.1]} 16... Ra7 {[%clk
0:02:22.4]} 17. Re2 {[%clk 0:02:32.3]} 17... e5 {[%clk 0:02:19.3]} 18. Rae1
{[%clk 0:02:25.9]} 18... Rd8 {[%clk 0:02:11.9]} 19. Nd5 {[%clk 0:02:18.3]} 19...
Qf7 {[%clk 0:02:02.7]} 20. Nc2 {[%clk 0:02:04.7]} 20... Nxd5 {[%clk 0:02:00.7]}
21. Bxd5 {[%clk 0:01:59.4]} 21... Be6 {[%clk 0:02:01.3]} 22. Ne3 {[%clk
0:01:43.4]} 22... Bh6 {[%clk 0:01:53.2]} 23. Qb4 {[%clk 0:01:41.6]} 23... Bxe3
{[%clk 0:01:45.2]} 24. Rxe3 {[%clk 0:01:14]} 24... Bxd5 {[%clk 0:01:42.5]} 25.
Qxb6 {[%clk 0:01:11.5]} 25... Rf8 {[%clk 0:01:18.5]} 26. f3 {[%clk 0:00:46.7]}
26... Bc6 {[%clk 0:01:11.7]} 27. Ba3 {[%clk 0:00:39.1]} 27... Rb7 {[%clk
0:01:07.6]} 28. Qa5 {[%clk 0:00:36.2]} 28... Qf6 {[%clk 0:01:04.4]} 29. Qd2
{[%clk 0:00:28.6]} 29... Rd7 {[%clk 0:00:56.3]} 30. Rd3 {[%clk 0:00:23.3]} 30...
Rfd8 {[%clk 0:00:51.5]} 31. Rd1 {[%clk 0:00:20.3]} 31... Bb7 {[%clk 0:00:41.1]}
32. Bxd6 {[%clk 0:00:18.4]} 32... Nc6 {[%clk 0:00:34.3]} 33. c5 {[%clk
0:00:14.9]} 33... Nd4 {[%clk 0:00:33.2]} 34. Qc1 {[%clk 0:00:12.9]} 34... Bc6
{[%clk 0:00:24.4]} 35. Qc4+ {[%clk 0:00:10.4]} 35... Kg7 {[%clk 0:00:17.2]} 36.
a4 {[%clk 0:00:10.8]} 36... Nf5 {[%clk 0:00:09.9]} 37. Qxa6 {[%clk 0:00:09]}
37... Bb7 {[%clk 0:00:06.1]} 38. Qb6 {[%clk 0:00:06.5]} 38... Nxd6 {[%clk
0:00:06.8]} 39. cxd6 {[%clk 0:00:06.4]} 39... e4 {[%clk 0:00:07.5]} 40. fxe4
{[%clk 0:00:06.2]} 40... Bxe4 {[%clk 0:00:08.4]} 41. R3d2 {[%clk 0:00:04.9]}
41... Qg5 {[%clk 0:00:08.4]} 42. Qf2 {[%clk 0:00:04.5]} 42... Kg8 {[%clk
0:00:06.7]} 43. h4 {[%clk 0:00:04]} 43... Qg4 {[%clk 0:00:06.4]} 44. Rd4 {[%clk
0:00:03.9]} 44... Re8 {[%clk 0:00:06.5]} 45. Re1 {[%clk 0:00:03.2]} 45... Rf7
{[%clk 0:00:01.7]} 46. Qe2 {[%clk 0:00:03.6]} 46... Qxe2 {[%clk 0:00:01.2]} 47.
Rxe2 {[%clk 0:00:04.5]} 47... Bc6 {[%clk 0:00:01.8]} 48. d7 {[%clk 0:00:04.8]}
48... Rd8 {[%clk 0:00:01.9]} 49. Red2 {[%clk 0:00:04.3]} 49... Rfxd7 {[%clk
0:00:01.7]} 50. Rd6 {[%clk 0:00:05.2]} 50... Rxd6 {[%clk 0:00:01.9]} 51. Rc2
{[%clk 0:00:06.1]} 51... Bd5 {[%clk 0:00:01.8]} 52. Rc5 {[%clk 0:00:06.6]} 52...
Bxb3 {[%clk 0:00:02.4]} 53. a5 {[%clk 0:00:07.2]} 53... Ba4 {[%clk 0:00:02.6]}
54. Rc7 {[%clk 0:00:07.7]} 54... Ra6 {[%clk 0:00:02.9]} 55. Rc5 {[%clk
0:00:07.7]} 55... Rda8 {[%clk 0:00:02.9]} 56. h5 {[%clk 0:00:07.4]} 56... Rxa5
{[%clk 0:00:03.3]} 57. Rc7 {[%clk 0:00:08.3]} 57... gxh5 {[%clk 0:00:03.2]} 58.
g4 {[%clk 0:00:08.3]} 58... Rg5 {[%clk 0:00:03.6]} 59. Kh2 {[%clk 0:00:08.3]}
59... hxg4 {[%clk 0:00:04.2]} 0-1

[Event "Early-Titled-Tuesday-Blitz-October-10-2023"]
[Site "Chess.com"]
[Date "2023.10.10"]
[Round "6"]
[White "NovikovaGalina"]
[Black "AlexandraSamaganova"]
[Result "0-1"]
[WhiteElo "2424"]
[BlackElo "2230"]
[TimeControl "180+1"]
[EndTime "9:05:47 PDT"]
[Termination "AlexandraSamaganova won by resignation"]

1. e4 {[%clk 0:03:00.9]} 1... c5 {[%clk 0:02:58.7]} 2. Nf3 {[%clk 0:03:01.3]}
2... e6 {[%clk 0:02:56]} 3. b4 {[%clk 0:03:00.8]} 3... b6 {[%clk 0:02:55.8]} 4.
bxc5 {[%clk 0:03:00.4]} 4... bxc5 {[%clk 0:02:55.8]} 5. c3 {[%clk 0:03:01.3]}
5... Nf6 {[%clk 0:02:55.5]} 6. Bd3 {[%clk 0:03:01.1]} 6... Nc6 {[%clk 0:02:53]}
7. O-O {[%clk 0:02:56.2]} 7... d6 {[%clk 0:02:49.8]} 8. Bc2 {[%clk 0:02:55.8]}
8... e5 {[%clk 0:02:38.6]} 9. d4 {[%clk 0:02:53.3]} 9... cxd4 {[%clk 0:02:37.9]}
10. cxd4 {[%clk 0:02:54.2]} 10... Bg4 {[%clk 0:01:58.4]} 11. Ba4 {[%clk
0:02:50.7]} 11... Rc8 {[%clk 0:01:53.4]} 12. d5 {[%clk 0:02:50.5]} 12... Bd7
{[%clk 0:01:48.1]} 13. dxc6 {[%clk 0:02:50.5]} 13... Bxc6 {[%clk 0:01:48.3]} 14.
Bxc6+ {[%clk 0:02:49.1]} 14... Rxc6 {[%clk 0:01:49.2]} 15. Qa4 {[%clk
0:02:39.5]} 15... Qd7 {[%clk 0:01:48.6]} 16. Bg5 {[%clk 0:02:34.7]} 16... Be7
{[%clk 0:01:45.7]} 17. Bxf6 {[%clk 0:02:33.1]} 17... Bxf6 {[%clk 0:01:44.8]} 18.
Nbd2 {[%clk 0:02:26.6]} 18... O-O {[%clk 0:01:43.6]} 19. Rac1 {[%clk 0:02:20.9]}
19... Rfc8 {[%clk 0:01:38.5]} 20. Rxc6 {[%clk 0:02:18.6]} 20... Rxc6 {[%clk
0:01:37.9]} 21. Nc4 {[%clk 0:01:57.2]} 21... Qc8 {[%clk 0:01:30.6]} 22. Ne3
{[%clk 0:01:54.5]} 22... g6 {[%clk 0:01:19.1]} 23. Nd5 {[%clk 0:01:52.3]} 23...
Bd8 {[%clk 0:01:19.3]} 24. Qxa7 {[%clk 0:01:40.3]} 24... Kg7 {[%clk 0:01:14]}
25. Qa3 {[%clk 0:01:20]} 25... Rc5 {[%clk 0:01:09.8]} 26. h3 {[%clk 0:01:17.1]}
26... Qc6 {[%clk 0:01:01.2]} 27. Qb2 {[%clk 0:00:51.6]} 27... Rb5 {[%clk
0:00:56.1]} 28. Qd2 {[%clk 0:00:43.4]} 28... Qc4 {[%clk 0:00:52.7]} 29. Re1
{[%clk 0:00:30.2]} 29... Ba5 {[%clk 0:00:50.7]} 30. Qg5 {[%clk 0:00:26.4]} 30...
Bxe1 {[%clk 0:00:40.8]} 31. Qf6+ {[%clk 0:00:25.1]} 31... Kg8 {[%clk 0:00:36.1]}
32. Ne7+ {[%clk 0:00:24.2]} 32... Kf8 {[%clk 0:00:35.3]} 33. Ng5 {[%clk
0:00:19.7]} 33... Rb2 {[%clk 0:00:14.9]} 34. Nxh7+ {[%clk 0:00:09.1]} 34... Ke8
{[%clk 0:00:14.8]} 35. f3 {[%clk 0:00:09.1]} 35... Qe6 {[%clk 0:00:09.2]} 36.
Qxe6 {[%clk 0:00:07.7]} 36... fxe6 {[%clk 0:00:09.2]} 37. Nxg6 {[%clk
0:00:08.6]} 37... Bd2 {[%clk 0:00:06.9]} 38. h4 {[%clk 0:00:08.1]} 38... Be3+
{[%clk 0:00:06.8]} 39. Kh2 {[%clk 0:00:07.9]} 39... Rxa2 {[%clk 0:00:06.7]} 40.
Ng5 {[%clk 0:00:07.1]} 40... Bxg5 {[%clk 0:00:06.1]} 41. hxg5 {[%clk 0:00:08]}
41... Kf7 {[%clk 0:00:06.5]} 42. Nh4 {[%clk 0:00:07.8]} 42... Kg7 {[%clk
0:00:06.3]} 43. Kh3 {[%clk 0:00:06.8]} 43... d5 {[%clk 0:00:06.3]} 44. Kg4
{[%clk 0:00:04.4]} 44... d4 {[%clk 0:00:06.4]} 45. g3 {[%clk 0:00:04.1]} 45...
d3 {[%clk 0:00:06.5]} 46. f4 {[%clk 0:00:04.1]} 46... exf4 {[%clk 0:00:04.8]}
47. gxf4 {[%clk 0:00:04.9]} 47... d2 {[%clk 0:00:05.3]} 48. f5 {[%clk
0:00:05.5]} 48... d1=Q+ {[%clk 0:00:05.7]} 49. Nf3 {[%clk 0:00:05.7]} 49... Ra3
{[%clk 0:00:05.7]} 50. f6+ {[%clk 0:00:05.4]} 50... Kg6 {[%clk 0:00:06.1]} 51.
Kf4 {[%clk 0:00:06.3]} 51... Qxf3+ {[%clk 0:00:06]} 52. Ke5 {[%clk 0:00:07.2]}
52... Qg3+ {[%clk 0:00:06.4]} 53. Kxe6 {[%clk 0:00:07.4]} 53... Qxg5 {[%clk
0:00:06.4]} 54. e5 {[%clk 0:00:08.3]} 54... Re3 {[%clk 0:00:06.4]} 55. Kd7
{[%clk 0:00:08.3]} 55... Qxe5 {[%clk 0:00:06.5]} 0-1

[Event "Early-Titled-Tuesday-Blitz-October-10-2023"]
[Site "Chess.com"]
[Date "2023.10.10"]
[Round "6"]
[White "sergoy"]
[Black "Iball95"]
[Result "0-1"]
[WhiteElo "2998"]
[BlackElo "2801"]
[TimeControl "180+1"]
[EndTime "9:05:51 PDT"]
[Termination "Iball95 won by checkmate"]

1. d4 {[%clk 0:03:00.9]} 1... d5 {[%clk 0:03:00]} 2. c4 {[%clk 0:02:58.4]} 2...
e6 {[%clk 0:03:00.8]} 3. Nf3 {[%clk 0:02:59]} 3... Nf6 {[%clk 0:03:00.9]} 4. Nc3
{[%clk 0:02:59.6]} 4... c5 {[%clk 0:03:01.8]} 5. cxd5 {[%clk 0:02:56.5]} 5...
cxd4 {[%clk 0:03:01.6]} 6. Qxd4 {[%clk 0:02:38.8]} 6... Nxd5 {[%clk 0:03:02.1]}
7. Nxd5 {[%clk 0:02:35.7]} 7... exd5 {[%clk 0:03:03]} 8. e3 {[%clk 0:02:28.9]}
8... Nc6 {[%clk 0:03:03.2]} 9. Qa4 {[%clk 0:02:28.6]} 9... Bb4+ {[%clk
0:02:50.8]} 10. Bd2 {[%clk 0:02:28.5]} 10... Bxd2+ {[%clk 0:02:51.7]} 11. Nxd2
{[%clk 0:02:29.1]} 11... O-O {[%clk 0:02:46.1]} 12. Bb5 {[%clk 0:02:29.1]} 12...
d4 {[%clk 0:02:46.4]} 13. e4 {[%clk 0:02:02.9]} 13... Qg5 {[%clk 0:02:43.6]} 14.
g3 {[%clk 0:01:48.7]} 14... Bd7 {[%clk 0:02:39.6]} 15. f4 {[%clk 0:01:44.7]}
15... Qc5 {[%clk 0:02:33.8]} 16. O-O {[%clk 0:01:27.4]} 16... a6 {[%clk
0:02:31.4]} 17. Bxc6 {[%clk 0:01:26.1]} 17... Bxc6 {[%clk 0:02:31.3]} 18. Qa3
{[%clk 0:01:26]} 18... Qh5 {[%clk 0:02:23]} 19. Rae1 {[%clk 0:01:22.3]} 19...
Rad8 {[%clk 0:02:16.6]} 20. Rf2 {[%clk 0:01:21.2]} 20... d3 {[%clk 0:02:15.7]}
21. Qc3 {[%clk 0:01:21]} 21... Rfe8 {[%clk 0:02:10.7]} 22. b3 {[%clk 0:01:16.6]}
22... Re7 {[%clk 0:02:07]} 23. a4 {[%clk 0:01:14]} 23... h6 {[%clk 0:02:07.2]}
24. Qc4 {[%clk 0:01:07.5]} 24... Kh8 {[%clk 0:01:50.2]} 25. Rf3 {[%clk
0:00:55.4]} 25... Qa5 {[%clk 0:01:34.4]} 26. Rf2 {[%clk 0:00:50.2]} 26... Red7
{[%clk 0:01:26.8]} 27. h3 {[%clk 0:00:36.3]} 27... f6 {[%clk 0:01:25.9]} 28. Kh2
{[%clk 0:00:35.1]} 28... Rd4 {[%clk 0:01:26.7]} 29. Qc1 {[%clk 0:00:34.2]} 29...
Re8 {[%clk 0:01:23.1]} 30. Qb2 {[%clk 0:00:15.5]} 30... Rd7 {[%clk 0:01:18.7]}
31. e5 {[%clk 0:00:15]} 31... fxe5 {[%clk 0:01:17.5]} 32. fxe5 {[%clk
0:00:15.6]} 32... Rde7 {[%clk 0:01:15.6]} 33. Ref1 {[%clk 0:00:11.2]} 33... Qxe5
{[%clk 0:01:12.4]} 34. Qxe5 {[%clk 0:00:06.2]} 34... Rxe5 {[%clk 0:01:13.3]} 35.
g4 {[%clk 0:00:06.7]} 35... Re2 {[%clk 0:01:10.1]} 36. Kg3 {[%clk 0:00:07.2]}
36... R8e3+ {[%clk 0:01:10]} 37. Kf4 {[%clk 0:00:07.6]} 37... Rxh3 {[%clk
0:01:09]} 38. Rxe2 {[%clk 0:00:07.8]} 38... dxe2 {[%clk 0:01:09.5]} 39. Re1
{[%clk 0:00:08.7]} 39... Rh2 {[%clk 0:01:07.7]} 40. Ke3 {[%clk 0:00:08.6]} 40...
Rg2 {[%clk 0:01:05.9]} 41. Rxe2 {[%clk 0:00:06.9]} 41... Rxg4 {[%clk 0:01:06.7]}
42. Rf2 {[%clk 0:00:07.6]} 42... Kh7 {[%clk 0:01:05.8]} 43. Rf7 {[%clk
0:00:07.7]} 43... h5 {[%clk 0:01:06.2]} 44. Rf5 {[%clk 0:00:05.5]} 44... g6
{[%clk 0:01:05.8]} 45. Rf7+ {[%clk 0:00:05.6]} 45... Kh6 {[%clk 0:01:06.7]} 46.
Nc4 {[%clk 0:00:06.3]} 46... Rg3+ {[%clk 0:01:06.4]} 47. Kd4 {[%clk 0:00:05.9]}
47... Rxb3 {[%clk 0:01:06.8]} 48. Ne5 {[%clk 0:00:06.3]} 48... Rb4+ {[%clk
0:01:07]} 49. Kc5 {[%clk 0:00:06.5]} 49... Rxa4 {[%clk 0:01:05.9]} 50. Rf6
{[%clk 0:00:06.9]} 50... Be4 {[%clk 0:01:05.4]} 51. Nf7+ {[%clk 0:00:05]} 51...
Kg7 {[%clk 0:01:05.6]} 52. Rf4 {[%clk 0:00:05.6]} 52... b5 {[%clk 0:01:05.4]}
53. Nd6 {[%clk 0:00:04.1]} 53... Bc2 {[%clk 0:01:04.2]} 54. Rf7+ {[%clk
0:00:04.1]} 54... Kh6 {[%clk 0:01:04.4]} 55. Re7 {[%clk 0:00:04.5]} 55... h4
{[%clk 0:01:03.1]} 56. Nf7+ {[%clk 0:00:04.2]} 56... Kh5 {[%clk 0:01:03.9]} 57.
Ne5 {[%clk 0:00:05.1]} 57... Bf5 {[%clk 0:01:01.9]} 58. Kd5 {[%clk 0:00:04.1]}
58... h3 {[%clk 0:01:01.6]} 59. Rh7+ {[%clk 0:00:04.3]} 59... Kg5 {[%clk
0:01:01.1]} 60. Nf7+ {[%clk 0:00:04.7]} 60... Kf4 {[%clk 0:01:01.1]} 61. Ne5
{[%clk 0:00:04]} 61... Be4+ {[%clk 0:00:58.7]} 62. Ke6 {[%clk 0:00:04.1]} 62...
Bf5+ {[%clk 0:00:58.6]} 63. Kf6 {[%clk 0:00:04.5]} 63... Kg3 {[%clk 0:00:59]}
64. Rh6 {[%clk 0:00:03.2]} 64... h2 {[%clk 0:00:57.6]} 65. Kg5 {[%clk
0:00:03.8]} 65... Bh3 {[%clk 0:00:54]} 66. Rxg6 {[%clk 0:00:03]} 66... h1=Q
{[%clk 0:00:53.4]} 67. Kf6+ {[%clk 0:00:03.9]} 67... Kf2 {[%clk 0:00:53.5]} 68.
Ke7 {[%clk 0:00:03.4]} 68... Re4 {[%clk 0:00:53.7]} 69. Rf6+ {[%clk 0:00:03.6]}
69... Ke2 {[%clk 0:00:53.9]} 70. Kd6 {[%clk 0:00:04.5]} 70... Qh2 {[%clk
0:00:53.8]} 71. Kc5 {[%clk 0:00:03.2]} 71... Qxe5+ {[%clk 0:00:54.2]} 72. Kb6
{[%clk 0:00:04.1]} 72... Qxf6+ {[%clk 0:00:54.7]} 73. Ka5 {[%clk 0:00:04.9]}
73... Ra4# {[%clk 0:00:55.1]} 0-1